[Event "FIDE WYCC Girls U14 2023"]
[Site "Montesilvano"]
[Date "2023.11.20"]
[Round "7.26"]
[White "Derlich, Sarah Sima"]
[Black "Pereira Garza, Cecilia"]
[Result "*"]
[WhiteElo "1745"]
[BlackElo "1479"]
[Annotator "NA COMBH"]
[PlyCount "83"]
[EventDate "2023.11.13"]
[EventType "swiss"]
[EventCountry "ITA"]
[SourceTitle "playchess.com"]
[Source "ChessBase"]
[SourceQuality "1"]
[TimeControl "40/5400+30:1800+30"]

1. e4 {[%emt 0:00:04]} c5 {[%emt 0:00:06]} 2. Nf3 {[%emt 0:00:06]} d6 {[%emt 0:00:11]} 3. Bb5+ Bd7 {[%emt 0:00:10]} 4. Bxd7+ {[%emt 0:00:17]} Nxd7 {[%emt 0:00:19]} 5. O-O {[%emt 0:00:10]} e5 {[%emt 0:02:28]} 6. c4 {[%emt 0:02:39]} Ne7 {[%emt 0:03:55]} 7. Nc3 {[%emt 0:01:01]} g6 {[%emt 0:00:24]} 8. d3 {[%emt 0:02:27]} Bg7 {[%emt 0:01:49]} 9. a3 {[%emt 0:01:28]} O-O {[%emt 0:02:28]} 10. Rb1 {[%emt 0:01:22]} h6 {[%emt 0:03:45]} 11. b4 {[%emt 0:08:40]} f5 {[%emt 0:02:00]} 12. exf5 Nxf5 {[%emt 0:04:30]} 13. Ne4 {[%emt 0:05:24]} b6 {[%emt 0:03:33]} 14. Be3 {[%emt 0:09:53]} g5 {[%emt 0:06:58]} 15. h3 {[%emt 0:06:32]} Nf6 {[%emt 0:04:52]} 16. Nc3 {[%emt 0:08:42]} g4 {[%emt 0:06:49]} 17. hxg4 {[%emt 0:01:29]} Nxg4 {[%emt 0:00:14]} 18. Nd5 {[%emt 0:01:58]} Nh4 {[%emt 0:06:23]} 19. Nd2 {[%emt 0:03:09]} h5 {[%emt 0:09:53]} 20. Ne4 {[%emt 0:00:51]} Nf5 {[%emt 0:02:12]} 21. Bg5 {[%emt 0:02:41]} Qd7 {[%emt 0:02:40]} 22. f3 {[%emt 0:10:38]} Ngh6 {[%emt 0:02:50]} 23. Nef6+ {[%emt 0:00:51]} Bxf6 {[%emt 0:00:18]} 24. Nxf6+ {[%emt 0:00:06]} Rxf6 {[%emt 0:00:16]} 25. Bxf6 {[%emt 0:00:05]} Nf7 {[%emt 0:07:10]} 26. Qd2 {[%emt 0:05:54]} Kh7 {[%emt 0:05:21]} 27. f4 {[%emt 0:01:43]} Rg8 {[%emt 0:03:36]} 28. Rbe1 {[%emt 0:06:42]} Qe6 {[%emt 0:04:14]} 29. fxe5 {[%emt 0:02:12]} dxe5 {[%emt 0:00:21]} 30. Qf4 {[%emt 0:11:27]} exf4 {[%emt 0:02:44]} 31. Rxe6 {[%emt 0:00:05]} Ne3 {[%emt 0:00:23]} 32. Rf2 {[%emt 0:01:46]} Rg4 {[%emt 0:01:16]} 33. Re4 {[%emt 0:00:50]} Kg6 {[%emt 0:00:33]} 34. Rexf4 {[%emt 0:00:36]} Nh6 {[%emt 0:02:53]} 35. bxc5 {[%emt 0:00:53]} bxc5 {[%emt 0:00:37]} 36. Be7 {[%emt 0:00:30]} Nhf5 {[%emt 0:02:48]} 37. Bxc5 {[%emt 0:00:21]} Rg3 {[%emt 0:00:14]} 38. Bxe3 {[%emt 0:00:34]} Nxe3 {[%emt 0:00:52]} 39. R4f3 {[%emt 0:00:04]} h4 {[%emt 0:00:28]} 40. Rxg3+ {[%emt 0:00:00]} hxg3 {[%emt 0:00:00]} 41. Rf3 {[%emt 0:00:14]} Nf5 {[%emt 0:00:22]} 42. c5 {[%emt 0:00:14]} *

[Event "FIDE WYCC Girls U14 2023"]
[Site "Montesilvano"]
[Date "2023.11.20"]
[Round "7.27"]
[White "Chasouraki, Chrysi"]
[Black "Zadrapova, Amalie"]
[Result "1/2-1/2"]
[ECO "B94"]
[WhiteElo "1559"]
[BlackElo "1753"]
[Annotator "NA COMBH"]
[PlyCount "137"]
[EventDate "2023.11.13"]
[EventType "swiss"]
[EventCountry "ITA"]
[SourceTitle "playchess.com"]
[Source "ChessBase"]
[SourceQuality "1"]
[TimeControl "40/5400+30:1800+30"]

1. e4 {[%emt 0:00:03]} c5 {[%emt 0:00:07]} 2. Nf3 {[%emt 0:00:13]} d6 {[%emt 0:00:05]} 3. d4 {[%emt 0:00:05]} cxd4 {[%emt 0:00:04]} 4. Nxd4 {[%emt 0:00:04]} Nf6 {[%emt 0:00:07]} 5. Nc3 {[%emt 0:00:04]} a6 {[%emt 0:00:07]} 6. Bg5 {[%emt 0:00:05]} Nc6 {[%emt 0:00:10]} 7. Bxf6 {[%emt 0:11:49]} gxf6 {[%emt 0:00:12]} 8. Nb3 {[%emt 0:02:29]} e6 {[%emt 0:03:29]} 9. Bd3 {[%emt 0:02:52]} Bd7 {[%emt 0:03:47]} 10. Qh5 {[%emt 0:04:32]} h6 {[%emt 0:05:40]} 11. O-O-O {[%emt 0:02:06]} Rg8 {[%emt 0:04:35]} 12. g3 {[%emt 0:04:10]} b5 {[%emt 0:05:04]} 13. f4 {[%emt 0:19:46]} b4 {[%emt 0:07:40]} 14. Ne2 {[%emt 0:06:07]} a5 {[%emt 0:04:38]} 15. Nbd4 {[%emt 0:06:14]} a4 {[%emt 0:08:04]} 16. Nxc6 {[%emt 0:01:53]} Bxc6 {[%emt 0:00:31]} 17. Nd4 {[%emt 0:00:31]} Bd7 {[%emt 0:03:30]} 18. f5 {[%emt 0:04:46]} Rg5 {[%emt 0:07:34]} 19. Qe2 {[%emt 0:04:14]} Rc8 {[%emt 0:09:39]} 20. Rhe1 {[%emt 0:04:58]} Qc7 {[%emt 0:05:47]} 21. Bb5 {[%emt 0:07:28]} Qc5 {[%emt 0:13:35]} 22. Bxd7+ {[%emt 0:06:37]} Kxd7 {[%emt 0:00:08]} 23. Nf3 {[%emt 0:01:52]} Rg8 {[%emt 0:03:22]} 24. Qd3 {[%emt 0:04:10]} h5 {[%emt 0:05:50]} 25. Re2 {[%emt 0:01:39]} Rc7 {[%emt 0:02:04]} 26. fxe6+ {[%emt 0:00:53]} fxe6 {[%emt 0:00:45]} 27. e5 {[%emt 0:00:04]} fxe5 {[%emt 0:02:09]} 28. Qh7+ {[%emt 0:03:14]} Rg7 {[%emt 0:00:18]} 29. Qxh5 {[%emt 0:01:04]} Ke7 {[%emt 0:02:46]} 30. Qh4+ {[%emt 0:00:34]} Ke8 {[%emt 0:00:39]} 31. Ng5 {[%emt 0:00:41]} Kd7 {[%emt 0:01:48]} 32. Ne4 {[%emt 0:00:22]} Qc4 {[%emt 0:00:58]} 33. Nf6+ {[%emt 0:00:27]} Kc8 {[%emt 0:00:23]} 34. Qxc4 {[%emt 0:00:25]} Rxc4 {[%emt 0:00:04]} 35. Re4 {[%emt 0:00:56]} Rgc7 {[%emt 0:00:43]} 36. Rxc4 {[%emt 0:00:16]} Rxc4 {[%emt 0:00:08]} 37. b3 {[%emt 0:00:10]} axb3 {[%emt 0:00:39]} 38. axb3 {[%emt 0:00:02]} Rc6 {[%emt 0:00:30]} 39. Ng4 {[%emt 0:00:43]} Bg7 {[%emt 0:00:23]} 40. Rf1 {[%emt 0:00:00]} e4 {[%emt 0:00:00]} 41. h4 {[%emt 0:05:49]} Rc5 {[%emt 0:03:28]} 42. Rf7 {[%emt 0:09:33]} Bc3 {[%emt 0:01:37]} 43. Re7 {[%emt 0:02:55]} Ra5 {[%emt 0:00:59]} 44. Kd1 {[%emt 0:00:19]} Ra1+ {[%emt 0:05:33]} 45. Ke2 {[%emt 0:00:09]} Re1+ {[%emt 0:06:45]} 46. Kf2 {[%emt 0:00:07]} Rc1 {[%emt 0:00:33]} 47. h5 {[%emt 0:08:00]} Bd4+ {[%emt 0:01:22]} 48. Kg2 {[%emt 0:02:48]} Rxc2+ {[%emt 0:03:42]} 49. Kf1 {[%emt 0:00:55]} Rc3 {[%emt 0:06:12]} 50. Rxe6 {[%emt 0:01:14]} Rxg3 {[%emt 0:01:43]} 51. Rxe4 {[%emt 0:00:22]} Bc3 {[%emt 0:02:02]} 52. Kf2 {[%emt 0:01:21]} Rh3 {[%emt 0:01:00]} 53. h6 {[%emt 0:00:07]} Kd7 {[%emt 0:00:48]} 54. Kg2 {[%emt 0:00:22]} Rh5 {[%emt 0:00:49]} 55. Rxb4 {[%emt 0:02:14]} Bxb4 {[%emt 0:01:50]} 56. Nf6+ {[%emt 0:00:05]} Ke7 {[%emt 0:00:12]} 57. Nxh5 {[%emt 0:00:04]} Kf7 {[%emt 0:00:20]} 58. h7 {[%emt 0:01:06]} Bc3 {[%emt 0:00:09]} 59. b4 {[%emt 0:00:19]} Kg6 {[%emt 0:01:00]} 60. b5 {[%emt 0:03:00]} Kxh7 {[%emt 0:00:24]} 61. b6 {[%emt 0:00:14]} d5 {[%emt 0:00:48]} 62. b7 {[%emt 0:00:12]} Be5 {[%emt 0:00:14]} 63. Nf6+ {[%emt 0:00:05]} Kg6 {[%emt 0:00:28]} 64. Nxd5 {[%emt 0:00:22]} Kf7 {[%emt 0:00:25]} 65. Kf3 {[%emt 0:00:19]} Ke6 {[%emt 0:00:31]} 66. Ke4 {[%emt 0:00:18]} Bd6 {[%emt 0:00:21]} 67. Nb6 {[%emt 0:01:23]} Bc7 {[%emt 0:00:40]} 68. Na8 {[%emt 0:00:33]} Kd6 {[%emt 0:00:26]} 69. Nxc7 {[%emt 0:00:48]} 1/2-1/2

[Event "FIDE WYCC Girls U14 2023"]
[Site "Montesilvano"]
[Date "2023.11.20"]
[Round "7.28"]
[White "Balazs, Szabina Zoe"]
[Black "Andries, Alexia"]
[Result "1/2-1/2"]
[ECO "B31"]
[WhiteElo "1552"]
[BlackElo "1750"]
[Annotator "NA COMBH"]
[PlyCount "87"]
[EventDate "2023.11.13"]
[EventType "swiss"]
[EventCountry "ITA"]
[SourceTitle "playchess.com"]
[Source "ChessBase"]
[SourceQuality "1"]
[TimeControl "40/5400+30:1800+30"]

1. e4 {[%emt 0:00:02]} c5 {[%emt 0:00:05]} 2. Nf3 {[%emt 0:00:06]} Nc6 {[%emt 0:00:07]} 3. Bb5 {[%emt 0:00:06]} g6 {[%emt 0:00:10]} 4. O-O {[%emt 0:00:10]} Bg7 {[%emt 0:00:03]} 5. Re1 {[%emt 0:00:11]} Nf6 {[%emt 0:00:35]} 6. a3 {[%emt 0:01:24]} O-O {[%emt 0:00:20]} 7. Bxc6 {[%emt 0:02:43]} bxc6 {[%emt 0:00:07]} 8. Nc3 {[%emt 0:00:39]} d6 {[%emt 0:00:46]} 9. d3 {[%emt 0:01:45]} Rb8 {[%emt 0:07:48]} 10. Rb1 {[%emt 0:10:12]} Nd7 {[%emt 0:02:46]} 11. Bd2 {[%emt 0:02:01]} Ne5 {[%emt 0:07:06]} 12. Nxe5 {[%emt 0:08:42]} Bxe5 {[%emt 0:00:08]} 13. Bh6 {[%emt 0:00:33]} Re8 {[%emt 0:01:57]} 14. Qc1 {[%emt 0:03:23]} Ba6 {[%emt 0:05:04]} 15. Ne2 {[%emt 0:02:26]} Qa5 {[%emt 0:02:35]} 16. f4 {[%emt 0:09:42]} Bxb2 {[%emt 0:02:22]} 17. Qe3 {[%emt 0:00:12]} Bg7 {[%emt 0:00:36]} 18. f5 {[%emt 0:01:15]} Bh8 {[%emt 0:10:10]} 19. h4 {[%emt 0:02:10]} Rb2 {[%emt 0:02:01]} 20. h5 {[%emt 0:06:18]} Reb8 {[%emt 0:00:14]} 21. Rbc1 {[%emt 0:00:23]} Rxc2 {[%emt 0:02:46]} 22. fxg6 {[%emt 0:06:53]} hxg6 {[%emt 0:01:37]} 23. hxg6 {[%emt 0:00:09]} Rxc1 {[%emt 0:00:48]} 24. Rxc1 {[%emt 0:00:45]} Bf6 {[%emt 0:01:50]} 25. Qg3 {[%emt 0:07:10]} Qxa3 {[%emt 0:13:27]} 26. Rd1 {[%emt 0:00:18]} Qb3 {[%emt 0:01:56]} 27. Rd2 {[%emt 0:01:38]} Qe6 {[%emt 0:06:10]} 28. Nf4 {[%emt 0:11:48]} Be5 {[%emt 0:00:36]} 29. gxf7+ {[%emt 0:02:05]} Kxf7 {[%emt 0:00:14]} 30. Qh4 {[%emt 0:04:00]} Rb1+ {[%emt 0:00:37]} 31. Kf2 {[%emt 0:00:52]} Bxf4 {[%emt 0:01:13]} 32. Bxf4 {[%emt 0:00:46]} Qf6 {[%emt 0:00:07]} 33. Qh5+ {[%emt 0:04:45]} Kf8 {[%emt 0:01:40]} 34. Kg3 {[%emt 0:00:30]} Rf1 {[%emt 0:00:38]} 35. Bh6+ {[%emt 0:00:51]} Kg8 {[%emt 0:00:37]} 36. Qg4+ {[%emt 0:00:40]} Kh7 {[%emt 0:01:26]} 37. Bg5 {[%emt 0:00:28]} Qe5+ {[%emt 0:00:45]} 38. Bf4 {[%emt 0:00:14]} Qg7 {[%emt 0:00:06]} 39. Bg5 {[%emt 0:00:14]} Qe5+ {[%emt 0:03:06]} 40. Bf4 {[%emt 0:00:00]} Qf6 {[%emt 0:00:00]} 41. Bg5 {[%emt 0:01:42]} Qe5+ {[%emt 0:04:00]} 42. Bf4 {[%emt 0:00:38]} Qg7 {[%emt 0:00:07]} 43. Bg5 {[%emt 0:00:08]} Qe5+ {[%emt 0:00:10]} 44. Bf4 {[%emt 0:00:10]} 1/2-1/2

[Event "FIDE WYCC Girls U14 2023"]
[Site "Montesilvano"]
[Date "2023.11.20"]
[Round "7.29"]
[White "Zerarga, Imene"]
[Black "Qi, Jenny"]
[Result "1/2-1/2"]
[ECO "B98"]
[WhiteElo "1514"]
[BlackElo "1737"]
[Annotator "NA COMBH"]
[PlyCount "118"]
[EventDate "2023.11.13"]
[EventType "swiss"]
[EventCountry "ITA"]
[SourceTitle "playchess.com"]
[Source "ChessBase"]
[SourceQuality "1"]
[TimeControl "40/5400+30:1800+30"]

1. e4 {[%emt 0:00:02]} c5 {[%emt 0:00:04]} 2. Nf3 {[%emt 0:00:05]} d6 {[%emt 0:00:21]} 3. d4 {[%emt 0:00:05]} cxd4 {[%emt 0:00:08]} 4. Nxd4 {[%emt 0:00:05]} Nf6 {[%emt 0:00:23]} 5. Nc3 {[%emt 0:00:06]} a6 {[%emt 0:00:25]} 6. Bg5 {[%emt 0:00:07]} e6 {[%emt 0:00:21]} 7. f4 {[%emt 0:00:05]} Be7 {[%emt 0:00:14]} 8. Qf3 {[%emt 0:00:14]} h6 {[%emt 0:01:26]} 9. Bh4 {[%emt 0:02:18]} Nbd7 {[%emt 0:01:29]} 10. O-O-O {[%emt 0:02:34]} Qc7 {[%emt 0:00:21]} 11. g4 {[%emt 0:02:11]} g5 {[%emt 0:08:33]} 12. fxg5 {[%emt 0:09:26]} Ne5 {[%emt 0:02:31]} 13. Qg3 {[%emt 0:04:41]} Nfxg4 {[%emt 0:04:37]} 14. gxh6 {[%emt 0:01:59]} Bxh4 {[%emt 0:10:05]} 15. Qxh4 {[%emt 0:00:08]} Qe7 {[%emt 0:02:18]} 16. Qxe7+ {[%emt 0:04:23]} Kxe7 {[%emt 0:00:07]} 17. Rd2 {[%emt 0:01:36]} Rxh6 {[%emt 0:03:00]} 18. h3 {[%emt 0:03:20]} Bd7 {[%emt 0:06:30]} 19. Nd1 {[%emt 0:08:00]} Rah8 {[%emt 0:12:49]} 20. Nf2 {[%emt 0:07:13]} Ne3 {[%emt 0:17:50]} 21. Re2 {[%emt 0:03:39]} Nxf1 {[%emt 0:03:13]} 22. Rxf1 {[%emt 0:00:03]} Rf6 {[%emt 0:06:29]} 23. Rh1 {[%emt 0:04:55]} Nf3 {[%emt 0:02:50]} 24. Nxf3 {[%emt 0:01:01]} Rxf3 {[%emt 0:00:07]} 25. h4 {[%emt 0:00:13]} e5 {[%emt 0:01:39]} 26. Nd3 {[%emt 0:01:07]} Bb5 {[%emt 0:01:44]} 27. Kd2 {[%emt 0:01:15]} Rc8 {[%emt 0:01:55]} 28. Rg2 {[%emt 0:01:57]} Rf6 {[%emt 0:04:20]} 29. h5 {[%emt 0:03:56]} Rh6 {[%emt 0:00:43]} 30. Nb4 {[%emt 0:04:31]} Bc4 {[%emt 0:01:09]} 31. b3 {[%emt 0:06:17]} Be6 {[%emt 0:00:30]} 32. c4 {[%emt 0:00:03]} Rch8 {[%emt 0:00:44]} 33. Rgh2 {[%emt 0:00:05]} Bg4 {[%emt 0:00:59]} 34. Nd5+ {[%emt 0:00:43]} Kd8 {[%emt 0:01:36]} 35. Ne3 {[%emt 0:02:54]} Bf3 {[%emt 0:01:08]} 36. Nf5 {[%emt 0:02:12]} Bxh1 {[%emt 0:01:23]} 37. Nxh6 {[%emt 0:00:06]} Rxh6 {[%emt 0:00:11]} 38. Rxh1 {[%emt 0:00:02]} Ke7 {[%emt 0:01:05]} 39. Ke3 {[%emt 0:00:05]} Kf6 {[%emt 0:00:55]} 40. Rf1+ {[%emt 0:00:00]} Kg7 {[%emt 0:00:00]} 41. Rg1+ {[%emt 0:05:51]} Kf6 {[%emt 0:15:54]} 42. Rf1+ {[%emt 0:00:07]} Ke6 {[%emt 0:00:29]} 43. Rf5 {[%emt 0:10:17]} Rf6 {[%emt 0:03:14]} 44. Rg5 {[%emt 0:01:50]} Rf4 {[%emt 0:00:53]} 45. Rg8 {[%emt 0:01:16]} Rh4 {[%emt 0:05:20]} 46. Rh8 {[%emt 0:00:21]} Rh2 {[%emt 0:02:19]} 47. h6 {[%emt 0:01:12]} Kf6 {[%emt 0:00:31]} 48. h7 {[%emt 0:01:30]} Kg7 {[%emt 0:02:05]} 49. Rd8 {[%emt 0:00:44]} Rxh7 {[%emt 0:01:57]} 50. Rxd6 {[%emt 0:00:06]} Rh3+ {[%emt 0:00:53]} 51. Ke2 {[%emt 0:00:32]} Rh2+ {[%emt 0:00:32]} 52. Kf3 {[%emt 0:00:11]} Rxa2 {[%emt 0:00:31]} 53. Rb6 {[%emt 0:00:07]} Rb2 {[%emt 0:01:02]} 54. Rxb7 {[%emt 0:00:26]} a5 {[%emt 0:01:40]} 55. Rb5 {[%emt 0:00:05]} Kf6 {[%emt 0:00:17]} 56. c5 {[%emt 0:00:36]} Ke6 {[%emt 0:00:38]} 57. Kg4 {[%emt 0:01:56]} Rg2+ {[%emt 0:00:26]} 58. Kf3 {[%emt 0:00:09]} Rb2 {[%emt 0:00:07]} 59. Kg4 {[%emt 0:00:05]} Rg2+ {[%emt 0:00:30]} 1/2-1/2

[Event "FIDE WYCC Girls U14 2023"]
[Site "Montesilvano"]
[Date "2023.11.20"]
[Round "7.30"]
[White "Rice, Leah"]
[Black "Li, Anna Sofie"]
[Result "1-0"]
[ECO "D00"]
[WhiteElo "1499"]
[BlackElo "1722"]
[Annotator "NA COMBH"]
[PlyCount "157"]
[EventDate "2023.11.13"]
[EventType "swiss"]
[EventCountry "ITA"]
[SourceTitle "playchess.com"]
[Source "ChessBase"]
[SourceQuality "1"]
[TimeControl "40/5400+30:1800+30"]

1. d4 {[%emt 0:00:01]} d5 {[%emt 0:00:08]} 2. Bf4 {[%emt 0:00:10]} Nf6 {[%emt 0:00:09]} 3. e3 {[%emt 0:00:52]} e6 {[%emt 0:00:26]} 4. Nf3 {[%emt 0:00:34]} c5 {[%emt 0:00:39]} 5. c3 {[%emt 0:00:42]} Nc6 {[%emt 0:00:46]} 6. Bd3 {[%emt 0:01:25]} Bd6 {[%emt 0:00:18]} 7. Bg3 {[%emt 0:00:54]} Qe7 {[%emt 0:01:33]} 8. Nbd2 {[%emt 0:03:55]} e5 {[%emt 0:03:36]} 9. dxc5 {[%emt 0:07:06]} Bxc5 {[%emt 0:02:22]} 10. Bb5 {[%emt 0:00:29]} Bd6 {[%emt 0:06:11]} 11. Bh4 {[%emt 0:03:35]} Bf5 {[%emt 0:04:08]} 12. O-O {[%emt 0:02:34]} a6 {[%emt 0:05:32]} 13. Ba4 {[%emt 0:01:47]} Rd8 {[%emt 0:07:00]} 14. c4 {[%emt 0:02:50]} Bd3 {[%emt 0:05:48]} 15. cxd5 {[%emt 0:08:46]} Bxf1 {[%emt 0:03:09]} 16. Qxf1 {[%emt 0:00:12]} b5 {[%emt 0:01:16]} 17. Bxb5 {[%emt 0:00:23]} axb5 {[%emt 0:00:08]} 18. Qxb5 {[%emt 0:00:28]} O-O {[%emt 0:01:44]} 19. Qxc6 {[%emt 0:02:48]} Rc8 {[%emt 0:04:41]} 20. Bxf6 {[%emt 0:01:23]} gxf6 {[%emt 0:05:41]} 21. Qa4 {[%emt 0:01:07]} f5 {[%emt 0:02:52]} 22. Qh4 {[%emt 0:06:02]} Qxh4 {[%emt 0:05:00]} 23. Nxh4 {[%emt 0:00:08]} Rc2 {[%emt 0:01:50]} 24. Ndf3 {[%emt 0:01:40]} Rfc8 {[%emt 0:03:58]} 25. g3 {[%emt 0:01:05]} Rxb2 {[%emt 0:03:10]} 26. Nxf5 {[%emt 0:00:35]} Rd8 {[%emt 0:05:13]} 27. a4 {[%emt 0:02:23]} Bb4 {[%emt 0:06:59]} 28. Rd1 {[%emt 0:07:05]} f6 {[%emt 0:03:31]} 29. d6 {[%emt 0:05:42]} Ra2 {[%emt 0:03:15]} 30. N3h4 {[%emt 0:02:06]} Rxa4 {[%emt 0:01:13]} 31. Rb1 {[%emt 0:07:32]} Bxd6 {[%emt 0:03:15]} 32. Rb6 {[%emt 0:10:36]} Ra1+ {[%emt 0:01:54]} 33. Kg2 {[%emt 0:00:04]} Rd1 {[%emt 0:00:37]} 34. Nh6+ {[%emt 0:02:34]} Kg7 {[%emt 0:02:14]} 35. N6f5+ {[%emt 0:00:03]} Kg8 {[%emt 0:01:28]} 36. Nh6+ {[%emt 0:00:05]} Kf8 {[%emt 0:00:30]} 37. N4f5 {[%emt 0:01:24]} Be7 {[%emt 0:01:14]} 38. Ng4 {[%emt 0:00:40]} Kf7 {[%emt 0:00:47]} 39. Nxe7 {[%emt 0:00:41]} Kxe7 {[%emt 0:00:12]} 40. Nxf6 {[%emt 0:00:00]} Rh8 {[%emt 0:00:00]} 41. Ne4 {[%emt 0:00:58]} Rhd8 {[%emt 0:09:40]} 42. Ng5 {[%emt 0:01:00]} Rh8 {[%emt 0:03:34]} 43. Re6+ {[%emt 0:00:21]} Kd7 {[%emt 0:01:26]} 44. Rxe5 {[%emt 0:00:25]} Rd2 {[%emt 0:00:49]} 45. Ne4 {[%emt 0:00:59]} Rc2 {[%emt 0:01:17]} 46. Rh5 {[%emt 0:00:16]} Ke7 {[%emt 0:02:16]} 47. Ng5 {[%emt 0:00:38]} h6 {[%emt 0:01:02]} 48. Nf3 {[%emt 0:00:05]} Ra8 {[%emt 0:02:15]} 49. Nd4 {[%emt 0:00:49]} Rb2 {[%emt 0:01:38]} 50. Nc6+ {[%emt 0:01:15]} Kf7 {[%emt 0:02:50]} 51. Rxh6 {[%emt 0:01:24]} Kg7 {[%emt 0:00:10]} 52. Rh4 {[%emt 0:00:09]} Re8 {[%emt 0:01:15]} 53. Nd4 {[%emt 0:00:27]} Kg6 {[%emt 0:01:07]} 54. Rg4+ {[%emt 0:01:33]} Kh5 {[%emt 0:00:41]} 55. Rg7 {[%emt 0:00:40]} Rf8 {[%emt 0:01:00]} 56. Nf3 {[%emt 0:00:57]} Kh6 {[%emt 0:00:29]} 57. Rg4 {[%emt 0:00:23]} Kh5 {[%emt 0:00:32]} 58. Rg5+ {[%emt 0:02:51]} Kh6 {[%emt 0:00:12]} 59. Re5 {[%emt 0:01:14]} Ra8 {[%emt 0:00:36]} 60. Ng5 {[%emt 0:01:09]} Rf8 {[%emt 0:00:46]} 61. Nh3 {[%emt 0:00:52]} Ra8 {[%emt 0:01:15]} 62. g4 {[%emt 0:00:26]} Rg8 {[%emt 0:04:13]} 63. Rh5+ {[%emt 0:00:19]} Kg6 {[%emt 0:00:15]} 64. Rg5+ {[%emt 0:00:03]} Kh7 {[%emt 0:00:17]} 65. Rxg8 {[%emt 0:00:04]} Kxg8 {[%emt 0:00:06]} 66. Kg3 {[%emt 0:00:10]} Kg7 {[%emt 0:00:05]} 67. f4 {[%emt 0:00:06]} Re2 {[%emt 0:00:14]} 68. Kf3 {[%emt 0:00:51]} Rxh2 {[%emt 0:00:18]} 69. Nf2 {[%emt 0:00:02]} Rh8 {[%emt 0:00:42]} 70. f5 {[%emt 0:00:11]} Kf6 {[%emt 0:00:20]} 71. Kf4 {[%emt 0:00:31]} Rh4 {[%emt 0:00:58]} 72. e4 {[%emt 0:00:31]} Rh2 {[%emt 0:00:40]} 73. g5+ {[%emt 0:00:03]} Kf7 {[%emt 0:00:13]} 74. g6+ {[%emt 0:00:12]} Kg7 {[%emt 0:00:21]} 75. Ng4 {[%emt 0:00:05]} Rh1 {[%emt 0:00:16]} 76. Kg5 {[%emt 0:00:18]} Rg1 {[%emt 0:01:10]} 77. f6+ {[%emt 0:00:12]} Kg8 {[%emt 0:01:06]} 78. e5 {[%emt 0:00:06]} Rf1 {[%emt 0:00:55]} 79. Nh6+ {[%emt 0:00:15]} 1-0

[Event "FIDE WYCC Girls U14 2023"]
[Site "Montesilvano"]
[Date "2023.11.20"]
[Round "7.31"]
[White "Nguyen, Thuy Linh"]
[Black "Briem, Gudrun Fanney"]
[Result "1-0"]
[ECO "E10"]
[WhiteElo "1398"]
[BlackElo "1692"]
[Annotator "NA COMBH"]
[PlyCount "139"]
[EventDate "2023.11.13"]
[EventType "swiss"]
[EventCountry "ITA"]
[SourceTitle "playchess.com"]
[Source "ChessBase"]
[SourceQuality "1"]
[TimeControl "40/5400+30:1800+30"]

1. d4 {[%emt 0:00:03]} Nf6 {[%emt 0:00:08]} 2. c4 {[%emt 0:00:18]} e6 {[%emt 0:00:12]} 3. Nf3 {[%emt 0:00:13]} d5 {[%emt 0:00:17]} 4. g3 {[%emt 0:00:25]} Nbd7 {[%emt 0:00:17]} 5. Bg2 {[%emt 0:01:02]} dxc4 {[%emt 0:00:21]} 6. Qa4 {[%emt 0:00:31]} a6 {[%emt 0:00:33]} 7. Qxc4 {[%emt 0:00:11]} b5 {[%emt 0:00:15]} 8. Qc6 {[%emt 0:02:22]} Rb8 {[%emt 0:00:23]} 9. Bf4 {[%emt 0:02:33]} Bb7 {[%emt 0:01:27]} 10. Qxc7 {[%emt 0:12:23]} Qxc7 {[%emt 0:00:12]} 11. Bxc7 {[%emt 0:00:17]} Rc8 {[%emt 0:00:04]} 12. Bf4 {[%emt 0:00:42]} Bb4+ {[%emt 0:00:16]} 13. Nbd2 {[%emt 0:01:42]} Rc2 {[%emt 0:01:20]} 14. a3 {[%emt 0:11:36]} Bxd2+ {[%emt 0:01:51]} 15. Bxd2 {[%emt 0:00:13]} Rxb2 {[%emt 0:00:21]} 16. Bb4 {[%emt 0:00:56]} Nb6 {[%emt 0:14:45]} 17. O-O {[%emt 0:01:00]} Nfd5 {[%emt 0:13:58]} 18. Ne5 {[%emt 0:08:52]} Rxe2 {[%emt 0:14:41]} 19. Bc5 {[%emt 0:05:50]} Nd7 {[%emt 0:07:12]} 20. Nxd7 {[%emt 0:01:31]} Kxd7 {[%emt 0:00:20]} 21. a4 {[%emt 0:00:56]} Bc6 {[%emt 0:05:10]} 22. axb5 {[%emt 0:01:50]} Bxb5 {[%emt 0:00:34]} 23. Rfc1 {[%emt 0:00:44]} Rd2 {[%emt 0:13:31]} 24. Ra3 {[%emt 0:08:20]} Rc8 {[%emt 0:01:45]} 25. Rca1 {[%emt 0:05:43]} Rb8 {[%emt 0:03:52]} 26. Rb1 {[%emt 0:06:18]} Rc8 {[%emt 0:02:45]} 27. Bf1 {[%emt 0:02:23]} e5 {[%emt 0:08:46]} 28. Bh3+ {[%emt 0:00:59]} Kd8 {[%emt 0:01:46]} 29. Bxc8 {[%emt 0:00:20]} Kxc8 {[%emt 0:00:03]} 30. dxe5 {[%emt 0:00:18]} Re2 {[%emt 0:02:40]} 31. Rc1 {[%emt 0:02:33]} Kd7 {[%emt 0:00:40]} 32. Bd6 {[%emt 0:00:10]} f6 {[%emt 0:01:35]} 33. Bf8 {[%emt 0:02:04]} fxe5 {[%emt 0:02:36]} 34. Bxg7 {[%emt 0:00:15]} Ke6 {[%emt 0:00:47]} 35. Bh6 {[%emt 0:03:15]} e4 {[%emt 0:01:41]} 36. Be3 {[%emt 0:01:52]} Kf6 {[%emt 0:00:49]} 37. Rca1 {[%emt 0:02:24]} Nb4 {[%emt 0:00:22]} 38. Rd1 {[%emt 0:06:49]} Nd3 {[%emt 0:00:30]} 39. Raa1 {[%emt 0:00:49]} Bc4 {[%emt 0:00:33]} 40. Rd2 {[%emt 0:00:00]} Rxd2 {[%emt 0:00:00]} 41. Bxd2 {[%emt 0:00:34]} Ne5 {[%emt 0:01:58]} 42. Bc3 {[%emt 0:01:56]} Ke6 {[%emt 0:01:15]} 43. Ra4 {[%emt 0:01:46]} Nf3+ {[%emt 0:00:57]} 44. Kg2 {[%emt 0:00:09]} Kd5 {[%emt 0:02:51]} 45. h4 {[%emt 0:00:59]} h5 {[%emt 0:01:01]} 46. Rb4 {[%emt 0:00:45]} Bb5 {[%emt 0:03:23]} 47. Kh1 {[%emt 0:00:34]} Ne5 {[%emt 0:08:04]} 48. Rd4+ {[%emt 0:01:03]} Ke6 {[%emt 0:00:06]} 49. Rd8 {[%emt 0:00:19]} Nf7 {[%emt 0:10:48]} 50. Rg8 {[%emt 0:00:42]} Bd3 {[%emt 0:01:57]} 51. g4 {[%emt 0:00:45]} Be2 {[%emt 0:01:54]} 52. Rg6+ {[%emt 0:01:42]} Ke7 {[%emt 0:01:34]} 53. gxh5 {[%emt 0:00:11]} Bxh5 {[%emt 0:00:43]} 54. Rxa6 {[%emt 0:00:08]} Bf3+ {[%emt 0:00:59]} 55. Kh2 {[%emt 0:00:20]} Kf8 {[%emt 0:00:28]} 56. Kg3 {[%emt 0:00:49]} Be2 {[%emt 0:00:33]} 57. Rb6 {[%emt 0:00:26]} Bf3 {[%emt 0:00:26]} 58. Kf4 {[%emt 0:00:10]} Kg8 {[%emt 0:00:36]} 59. Kf5 {[%emt 0:00:39]} Kh7 {[%emt 0:00:32]} 60. Kf6 {[%emt 0:00:47]} e3 {[%emt 0:00:13]} 61. fxe3 {[%emt 0:00:48]} Bh5 {[%emt 0:00:21]} 62. Rb7 {[%emt 0:00:26]} Kg8 {[%emt 0:00:18]} 63. Rb8+ {[%emt 0:00:15]} Kh7 {[%emt 0:00:46]} 64. Rf8 {[%emt 0:00:17]} Bg6 {[%emt 0:00:21]} 65. Rxf7+ {[%emt 0:00:10]} Kg8 {[%emt 0:00:06]} 66. Rg7+ {[%emt 0:00:10]} Kh8 {[%emt 0:00:14]} 67. Rxg6 {[%emt 0:00:10]} Kh7 {[%emt 0:00:04]} 68. Rg5 {[%emt 0:00:12]} Kh6 {[%emt 0:00:16]} 69. Kf7 {[%emt 0:00:08]} Kh7 {[%emt 0:00:07]} 70. Rh5# {[%emt 0:00:06]} 1-0